bitfinex/quotes_BTCUSD_20241211
["timestamp","ask_amount","ask_price","bid_price","bid_amount"]
[1733918776029,8.58e-05,98480.0,98479.0,0.72132434]
[1733918776306,8.58e-05,98480.0,98479.0,0.72232434]
[1733918777614,8.58e-05,98480.0,98479.0,0.6169991]
[1733918785290,8.58e-05,98480.0,98479.0,0.72232434]
[1733918795641,8.58e-05,98480.0,98479.0,0.6169991]
[1733918795905,8.58e-05,98480.0,98479.0,0.5384991]
[1733918796556,8.58e-05,98480.0,98479.0,0.002]
[1733918797409,8.58e-05,98480.0,98478.0,1.01925854]
[1733918797618,0.0010858,98480.0,98478.0,1.01925854]
[1733918798055,8.58e-05,98480.0,98478.0,1.01925854]
[1733918802144,8.58e-05,98480.0,98479.0,0.203088]
[1733918802547,8.58e-05,98480.0,98478.0,1.01925854]
[1733918802749,8.58e-05,98480.0,98479.0,0.38972861]
[1733918802949,8.58e-05,98480.0,98479.0,0.43421324]
[1733918804188,8.58e-05,98480.0,98479.0,0.43521324]
[1733918804401,8.58e-05,98480.0,98479.0,0.43721324]
[1733918805601,8.58e-05,98480.0,98479.0,0.9734525]
[1733918817508,8.58e-05,98480.0,98479.0,1.1234525]
[1733918817916,8.58e-05,98480.0,98479.0,1.41026901]
[1733918818134,8.58e-05,98480.0,98479.0,1.2734525]
[1733918818332,8.58e-05,98480.0,98479.0,1.26025921]
[1733918818574,8.58e-05,98480.0,98479.0,1.40725921]
[1733918818991,8.58e-05,98480.0,98479.0,1.41525921]
[1733918818992,0.0010858,98480.0,98479.0,1.41525921]
[1733918819628,0.0010858,98480.0,98479.0,1.4284525]
[1733918820058,0.0010858,98480.0,98479.0,1.4334525]
[1733918820271,0.0010858,98480.0,98479.0,1.2834525]
[1733918820474,0.0010858,98480.0,98479.0,1.1334525]
[1733918820683,0.0010858,98480.0,98479.0,1.36141732]
[1733918820898,0.0010858,98480.0,98479.0,1.1334525]
[1733918822809,0.0010858,98480.0,98479.0,0.8576525]
[1733918823027,0.0010858,98480.0,98479.0,0.6545645]
[1733918823441,0.0010858,98480.0,98479.0,0.5494991]
[1733918824117,0.0010858,98480.0,98479.0,0.5444991]
[1733918824342,0.0010858,98480.0,98479.0,0.5374991]
[1733918824343,8.58e-05,98480.0,98479.0,0.5374991]
[1733918824829,8.58e-05,98480.0,98479.0,0.5384991]
[1733918825040,8.58e-05,98480.0,98479.0,0.002]
[1733918825246,0.00768935,98480.0,98479.0,0.002]
[1733918825461,0.03068935,98480.0,98479.0,0.002]
[1733918826314,0.03068935,98480.0,98479.0,0.001]
[1733918826522,0.00768935,98480.0,98479.0,0.001]
[1733918827159,0.00768935,98480.0,98475.0,0.00829428]
[1733918827345,0.00760355,98479.0,98475.0,0.00829428]
[1733918827595,0.0040858,98480.0,98475.0,0.00829428]
[1733918827802,0.00760122,98479.0,98476.0,0.203095]
[1733918828018,0.00760122,98479.0,98475.0,0.00829428]
[1733918828235,0.0030858,98480.0,98475.0,0.00829428]
[1733918828469,0.0010858,98480.0,98475.0,0.00829428]
[1733918829759,8.58e-05,98480.0,98475.0,0.00829428]
[1733918830239,0.001,98479.0,98475.0,0.00829428]
[1733918830444,0.004,98479.0,98475.0,0.00829428]
[1733918830649,8.58e-05,98480.0,98475.0,0.00829428]
[1733918831077,0.0010858,98480.0,98476.0,0.30842024]
[1733918831330,0.0010858,98480.0,98476.0,0.5115461]
[1733918831331,8.58e-05,98480.0,98476.0,0.5115461]
[1733918832423,0.0010858,98480.0,98476.0,0.5115461]
[1733918832645,0.0010858,98480.0,98477.0,0.5364991]
[1733918832867,0.0010858,98480.0,98478.0,0.84593067]
[1733918833069,0.0010858,98480.0,98478.0,1.86518921]
[1733918833492,0.0010858,98480.0,98479.0,0.09118168]
[1733918833698,8.58e-05,98480.0,98479.0,0.19752214]
[1733918834331,8.58e-05,98480.0,98479.0,0.10634046]
[1733918834545,0.0010858,98480.0,98479.0,0.10634046]
[1733918834957,8.58e-05,98480.0,98479.0,0.11034046]
[1733918835175,0.0010858,98480.0,98479.0,0.11734046]
[1733918835380,0.0010858,98480.0,98479.0,0.20452214]
[1733918835802,0.0010858,98480.0,98479.0,0.20852214]
[1733918836014,0.0010858,98480.0,98479.0,0.20750692]
[1733918836220,0.0010858,98480.0,98479.0,0.20746855]
[1733918836456,8.58e-05,98480.0,98479.0,0.20046855]
[1733918836678,8.58e-05,98480.0,98479.0,0.11034043]
[1733918836908,8.58e-05,98480.0,98479.0,0.20148374]
[1733918837163,8.58e-05,98480.0,98479.0,0.20757068]
[1733918837372,8.58e-05,98480.0,98479.0,0.20655549]
[1733918837679,8.58e-05,98480.0,98479.0,0.12041218]
[1733918837880,8.58e-05,98480.0,98479.0,0.12142737]
[1733918838299,0.0010858,98480.0,98479.0,0.12942737]
[1733918838715,8.58e-05,98480.0,98479.0,0.65792647]
[1733918838941,8.58e-05,98480.0,98479.0,0.65691128]
[1733918839582,0.0010858,98480.0,98479.0,0.66591128]
[1733918839788,0.0010858,98480.0,98479.0,0.67253273]
[1733918840481,0.0010858,98480.0,98479.0,0.66244579]
[1733918841284,8.58e-05,98480.0,98479.0,0.64844579]
[1733918841520,8.58e-05,98480.0,98479.0,0.65244579]
[1733918841733,0.0010858,98480.0,98479.0,0.66044579]
[1733918841933,8.58e-05,98480.0,98479.0,0.65244579]
[1733918842140,8.58e-05,98480.0,98479.0,0.64844579]
[1733918842343,0.0010858,98480.0,98479.0,0.65644579]
[1733918842494,0.0010858,98480.0,98479.0,0.66044579]
[1733918844298,8.58e-05,98480.0,98479.0,0.64844579]
[1733918844903,0.0010858,98480.0,98479.0,0.66044579]
[1733918845959,0.0010858,98480.0,98479.0,0.65044579]
[1733918856609,0.0010858,98480.0,98479.0,1.01762338]
[1733918856831,0.0010858,98480.0,98479.0,1.06318258]
[1733918857044,0.0010858,98480.0,98479.0,0.88094579]
[1733918857245,0.0010858,98480.0,98479.0,1.10847342]
[1733918857886,0.0010858,98480.0,98479.0,1.10447342]
[1733918858090,8.58e-05,98480.0,98479.0,1.09647342]
[1733918858338,0.0010858,98480.0,98479.0,1.10944637]
[1733918858554,8.58e-05,98480.0,98479.0,1.10044637]
[1733918858763,8.58e-05,98480.0,98479.0,1.09644637]
[1733918858974,0.0010858,98480.0,98479.0,1.10544637]
[1733918859185,0.0010858,98480.0,98479.0,0.87794579]
[1733918860661,0.0010858,98480.0,98479.0,0.88394579]
[1733918861539,0.0010858,98480.0,98479.0,1.02042319]
[1733918862217,0.00085457,98480.0,98479.0,1.02042319]
[1733918863118,0.00085457,98480.0,98479.0,0.88394579]
[1733918863728,0.00085457,98480.0,98479.0,0.80344579]
[1733918864125,0.00085457,98480.0,98479.0,0.65344579]
[1733918864918,0.00094047,98480.0,98479.0,0.65344579]
[1733918865121,0.00094047,98480.0,98479.0,0.64744579]
[1733918865319,8.59e-05,98480.0,98479.0,0.64344579]
[1733918865954,8.59e-05,98480.0,98479.0,0.63844579]
[1733918866170,0.0010859,98480.0,98479.0,0.64744579]
[1733918866377,0.0010859,98480.0,98479.0,0.55212055]
[1733918867215,0.0010859,98480.0,98479.0,0.55512055]
[1733918867670,8.59e-05,98480.0,98479.0,0.54312055]
[1733918867876,0.0010859,98480.0,98479.0,0.54912055]
[1733918868117,8.59e-05,98480.0,98479.0,0.54412055]
[1733918868791,8.59e-05,98480.0,98479.0,0.54312055]
[1733918868993,8.59e-05,98480.0,98479.0,0.54412055]
[1733918869231,8.59e-05,98480.0,98479.0,0.54512055]
[1733918870346,8.59e-05,98480.0,98479.0,0.54412055]
[1733918870556,8.59e-05,98480.0,98479.0,0.54312055]
[1733918870819,8.59e-05,98480.0,98479.0,0.54412055]
[1733918871037,8.59e-05,98480.0,98479.0,0.54512055]
[1733918871246,8.59e-05,98480.0,98479.0,0.54312055]
[1733918871455,0.0475859,98480.0,98479.0,0.00662145]
[1733918872291,0.05518737,98480.0,98479.0,0.00662145]
[1733918873111,0.05518593,98480.0,98479.0,0.00662145]
[1733918873744,0.05718593,98480.0,98479.0,0.00662145]
[1733918874163,0.05518593,98480.0,98479.0,0.00662145]
[1733918874864,0.05718593,98480.0,98479.0,0.00662145]
[1733918875062,0.05918593,98480.0,98479.0,0.00662145]
[1733918875268,0.05718593,98480.0,98479.0,0.00662145]
[1733918875685,0.06118593,98480.0,98479.0,0.00662145]
[1733918879978,0.06117761,98480.0,98479.0,0.00662145]
[1733918882598,0.06117613,98480.0,98479.0,0.00662145]
[1733918882803,0.01367613,98480.0,98479.0,0.00662145]
[1733918883409,0.0060859,98480.0,98479.0,0.00662145]
[1733918883832,0.01367613,98480.0,98479.0,0.00662145]
[1733918884038,0.0060859,98480.0,98479.0,0.00662145]
[1733918884444,0.01367613,98480.0,98479.0,0.00662145]
[1733918884658,0.0060859,98480.0,98479.0,0.00662145]
[1733918886360,0.01367613,98480.0,98479.0,0.00662145]
[1733918886575,0.0060859,98480.0,98479.0,0.00662145]
[1733918887394,0.01367613,98480.0,98479.0,0.00662145]
[1733918887624,0.0060859,98480.0,98479.0,0.00662145]
[1733918887976,0.01367613,98480.0,98479.0,0.00662145]
[1733918892455,0.10482521,98480.0,98479.0,0.00662145]
[1733918892671,0.10485017,98480.0,98479.0,0.00662145]
[1733918893117,0.12384705,98480.0,98479.0,0.00662145]
[1733918893998,0.1289277,98480.0,98479.0,0.00662145]
[1733918894216,0.67922105,98480.0,98479.0,4.5e-07]
[1733918894426,0.67922105,98480.0,98475.0,0.00829428]
[1733918894427,0.6023,98476.0,98475.0,2.8e-07]
[1733918894639,0.75146704,98476.0,98475.0,2.8e-07]
[1733918894844,0.75146704,98476.0,98470.0,0.01497703]
[1733918894845,0.3,98471.0,98470.0,0.01497703]
[1733918895092,0.52906704,98471.0,98470.0,0.01497703]
[1733918895311,0.52906704,98471.0,98470.0,0.01514477]
[1733918895312,0.74570047,98471.0,98470.0,0.01514477]
[1733918895527,0.53092467,98471.0,98470.0,0.01514477]
[1733918895738,0.43987887,98471.0,98470.0,0.01514477]
[1733918895954,0.41961036,98471.0,98470.0,0.01514477]
[1733918896165,0.41452971,98471.0,98470.0,0.01514477]
[1733918896396,0.40439594,98471.0,98470.0,0.01514477]
[1733918896603,0.3853858,98471.0,98470.0,0.01514477]
[1733918897011,0.3943858,98471.0,98470.0,0.01614477]
[1733918897222,0.37098079,98471.0,98470.0,0.01614477]
[1733918897710,0.36398079,98471.0,98470.0,0.01514477]
[1733918897920,0.38297651,98471.0,98470.0,0.01514477]
[1733918898131,0.39797651,98471.0,98470.0,0.01714477]
[1733918899623,0.37997651,98471.0,98470.0,0.01614477]
[1733918900265,0.37997651,98471.0,98470.0,0.01714477]
[1733918900469,0.38897651,98471.0,98470.0,0.01714477]
[1733918902259,0.38135575,98471.0,98470.0,0.01714477]
[1733918902463,0.37680007,98471.0,98470.0,0.01714477]
[1733918902664,0.38894792,98471.0,98470.0,0.01714477]
[1733918904235,0.37679982,98471.0,98470.0,0.01714477]
[1733918904793,0.38894792,98471.0,98470.0,0.01714477]
[1733918905632,0.38894741,98471.0,98470.0,0.01714477]
[1733918908427,0.6440507,98471.0,98470.0,0.01714477]
[1733918908629,0.67442111,98471.0,98470.0,0.01714477]
[1733918908831,1.0033807,98471.0,98470.0,0.01714477]
[1733918909044,1.01553073,98471.0,98470.0,0.01714477]
[1733918909266,1.1974016,98471.0,98470.0,0.01714477]
[1733918909465,1.19564237,98471.0,98470.0,0.01538554]
[1733918909618,1.34564237,98471.0,98470.0,0.01538554]
[1733918909821,0.406238,98464.0,98460.0,0.0001718]
[1733918910022,0.4181675,98461.0,98460.0,0.00033958]
[1733918910224,0.59258846,98461.0,98460.0,0.00033958]
[1733918910587,0.5116712,98461.0,98460.0,0.00033958]
[1733918910792,0.50154696,98461.0,98460.0,0.00033958]
[1733918911483,0.51054696,98461.0,98460.0,0.00133958]
[1733918911710,0.66054696,98461.0,98460.0,0.00033958]
[1733918911922,0.66562899,98461.0,98460.0,0.00033958]
[1733918912128,0.74590645,98461.0,98460.0,0.00033958]
[1733918912333,0.77072653,98461.0,98460.0,0.00033958]
[1733918912536,0.89735612,98461.0,98460.0,0.00133958]
[1733918912751,0.93933287,98461.0,98460.0,0.00133958]
[1733918913206,1.28445687,98461.0,98460.0,0.00133958]
[1733918913413,1.27783817,98461.0,98460.0,0.00133958]
[1733918913619,1.28683817,98461.0,98460.0,0.00133958]
[1733918914037,1.27083817,98461.0,98460.0,0.00033958]
[1733918914287,1.28583817,98461.0,98460.0,0.00133958]
[1733918914496,1.29579135,98461.0,98460.0,0.00133958]
[1733918914709,1.28679135,98461.0,98460.0,0.00133958]
[1733918914913,1.28979135,98461.0,98460.0,0.00033958]
[1733918915121,1.30207408,98461.0,98460.0,0.00133958]
[1733918915332,0.96595008,98461.0,98460.0,0.00133958]
[1733918915552,0.96594797,98461.0,98460.0,0.00133958]
[1733918916693,0.72085843,98461.0,98460.0,0.00133958]
[1733918916913,0.54880904,98461.0,98460.0,0.00133958]
[1733918917157,0.4434838,98461.0,98460.0,0.00133958]
[1733918917363,0.41312229,98461.0,98460.0,0.00133958]
[1733918917775,0.39712229,98461.0,98460.0,0.00033958]
[1733918917976,0.40512229,98461.0,98460.0,0.00033958]
[1733918918182,0.40912229,98461.0,98460.0,0.00033958]
[1733918918598,0.40512229,98461.0,98460.0,0.00033958]
[1733918919017,0.40912229,98461.0,98460.0,0.00033958]
[1733918919229,0.40112229,98461.0,98460.0,0.00033958]
[1733918919651,0.41012229,98461.0,98460.0,0.00033958]
[1733918919866,0.40112229,98461.0,98460.0,0.00033958]
[1733918920074,0.36471739,98461.0,98460.0,0.00033958]
[1733918920284,0.36971739,98461.0,98460.0,0.00033958]
[1733918920497,0.38186362,98461.0,98460.0,0.00033958]
[1733918920695,0.37371739,98461.0,98460.0,0.00033958]
[1733918920937,0.38271739,98461.0,98460.0,0.00033958]
[1733918921150,0.37286362,98461.0,98460.0,0.00033958]
[1733918921603,0.37586362,98461.0,98460.0,0.00033958]
[1733918922025,0.37286362,98461.0,98460.0,0.00033958]
[1733918922231,0.37288832,98461.0,98460.0,0.00033958]
[1733918922433,0.37588832,98461.0,98460.0,0.00033958]
[1733918922639,0.38188905,98461.0,98460.0,0.00033958]
[1733918922842,0.37588905,98461.0,98460.0,0.00033958]
[1733918923263,0.38188905,98461.0,98460.0,0.00033958]
[1733918923471,0.40089925,98461.0,98460.0,0.00033958]
[1733918923675,0.39789925,98461.0,98460.0,0.00033958]
[1733918924097,0.40089925,98461.0,98460.0,0.00033958]
[1733918925549,0.40090112,98461.0,98460.0,0.00033958]
[1733918929037,0.40091105,98461.0,98460.0,0.00033958]
[1733918931548,0.50623629,98461.0,98460.0,0.00033958]
[1733918932774,0.50623827,98461.0,98460.0,0.00033958]
[1733918933368,0.53666075,98461.0,98460.0,0.00033958]
[1733918933574,0.50623827,98461.0,98460.0,0.00033958]
[1733918934278,0.5162437,98461.0,98460.0,0.00033958]
[1733918934475,0.54666618,98461.0,98460.0,0.00033958]
[1733918935275,0.63771266,98461.0,98460.0,0.00033958]
[1733918935697,0.58827613,98461.0,98460.0,0.00033958]
[1733918935898,0.63772081,98461.0,98460.0,0.00033958]
[1733918936267,0.54667433,98461.0,98460.0,0.00033958]
[1733918936474,0.55175597,98461.0,98460.0,0.00033958]
[1733918937523,0.54667433,98461.0,98460.0,0.00033958]
[1733918937733,0.52132847,98461.0,98460.0,0.00033958]
[1733918938385,0.85820119,98461.0,98460.0,0.00033958]
[1733918938801,0.88862869,98461.0,98460.0,0.00033958]
[1733918939009,0.88861504,98461.0,98460.0,0.00033958]
[1733918939240,1.07070801,98461.0,98460.0,0.00033958]
[1733918940539,1.07122702,98461.0,98460.0,0.00033958]
[1733918944406,0.96590178,98461.0,98460.0,0.00033958]
[1733918944628,0.60294127,98461.0,98460.0,0.00033958]
[1733918944842,0.2560017,98461.0,98460.0,0.00033958]
[1733918945056,0.28135489,98461.0,98460.0,0.00033958]
[1733918945274,0.37262892,98461.0,98460.0,0.00033958]
[1733918946383,0.37771078,98461.0,98460.0,0.00033958]
[1733918947894,0.28643675,98461.0,98460.0,0.00033958]
[1733918948103,0.37769876,98461.0,98460.0,0.00033958]
[1733918948553,0.3726169,98461.0,98460.0,0.00033958]
[1733918950967,0.34218185,98461.0,98460.0,0.00033958]
[1733918951405,0.3422001,98461.0,98460.0,0.00033958]
[1733918951615,0.34220038,98461.0,98460.0,0.00033958]
[1733918952449,0.25093837,98461.0,98460.0,0.00033958]
[1733918952655,0.25601986,98461.0,98460.0,0.00033958]
[1733918952859,0.25093837,98461.0,98460.0,0.00033958]
[1733918954617,0.25093884,98461.0,98460.0,0.00033958]
[1733918957156,0.35626408,98461.0,98460.0,0.00033958]
[1733918957399,0.36134554,98461.0,98460.0,0.00033958]
[1733918957721,0.49827574,98461.0,98460.0,0.00033958]
[1733918957915,0.47925441,98461.0,98460.0,0.00033958]
[1733918958118,0.49828265,98461.0,98460.0,0.00033958]
[1733918960439,0.49830565,98461.0,98460.0,0.00033958]
[1733918961398,0.69844395,98461.0,98460.0,0.00033958]
[1733918961822,0.69844404,98461.0,98460.0,0.00033958]
[1733918962257,0.88096806,98461.0,98460.0,0.00033958]
[1733918962520,0.91141341,98461.0,98460.0,0.00033958]
[1733918964668,0.57409047,98461.0,98460.0,0.00033958]
[1733918965058,0.6045383,98461.0,98460.0,0.00033958]
[1733918965260,0.78706232,98461.0,98460.0,0.00033958]
[1733918965397,0.62367479,98461.0,98460.0,0.00033958]
[1733918965811,0.80636836,98461.0,98460.0,0.00033958]
[1733918968629,0.9939936,98461.0,98460.0,0.00033958]
[1733918969059,0.81130003,98461.0,98460.0,0.00033958]
[1733918971580,0.78642706,98461.0,98460.0,0.00033958]
[1733918971881,0.81131582,98461.0,98460.0,0.00033958]
[1733918972116,0.72901582,98461.0,98460.0,0.00033958]
[1733918972710,0.91172087,98461.0,98460.0,0.00033958]
[1733918974474,0.91173855,98461.0,98460.0,0.00033958]
[1733918974819,0.94220313,98461.0,98460.0,0.00033958]
[1733918975228,0.91174828,98461.0,98460.0,0.00033958]
[1733918976638,1.06234775,98461.0,98460.0,0.00033958]
[1733918976880,0.94724446,98461.0,98460.0,0.00033958]
[1733918978388,0.99304446,98461.0,98460.0,0.00033958]
[1733918979772,1.013639,98461.0,98460.0,0.00033958]
[1733918981049,0.817839,98461.0,98460.0,0.00033958]
[1733918981227,0.94724446,98461.0,98460.0,0.00033958]
[1733918981556,0.79724446,98461.0,98460.0,0.00033958]
[1733918981684,0.9967209,98461.0,98460.0,0.00033958]
[1733918982495,1.00813429,98461.0,98460.0,0.00033958]
[1733918982904,0.97780966,98461.0,98460.0,0.00033958]
[1733918983313,0.95877892,98461.0,98460.0,0.00033958]
[1733918983949,0.80877892,98461.0,98460.0,0.00033958]
[1733918984162,0.71916187,98461.0,98460.0,0.00033958]
[1733918984597,0.72931713,98461.0,98460.0,0.00033958]
[1733918985063,0.69887468,98461.0,98460.0,0.00033958]
[1733918985240,0.71918516,98461.0,98460.0,0.00033958]
[1733918985846,0.72934042,98461.0,98460.0,0.00033958]
[1733918986225,0.72908758,98461.0,98460.0,0.00033958]
[1733918987626,0.95759232,98461.0,98460.0,0.00033958]
[1733918988058,0.74813679,98461.0,98460.0,0.00033958]
[1733918988281,0.73798153,98461.0,98460.0,0.00033958]
[1733918988484,0.71894044,98461.0,98460.0,0.00033958]
[1733918992776,0.901746,98461.0,98460.0,0.00033958]
[1733918996223,0.38158722,98461.0,98460.0,0.00033958]
[1733918996437,0.90180242,98461.0,98460.0,0.00033958]
[1733918998006,0.88274839,98461.0,98460.0,0.00033958]
[1733918998277,0.90178646,98461.0,98460.0,0.00033958]
[1733918999883,0.7189792,98461.0,98460.0,0.00033958]
[1733919000117,0.90178646,98461.0,98460.0,0.00033958]
[1733919000541,0.7189792,98461.0,98460.0,0.00033958]
[1733919000747,0.71891145,98461.0,98460.0,0.00033958]
[1733919000956,0.69403742,98461.0,98460.0,0.00033958]
[1733919001164,0.76841657,98461.0,98460.0,0.00033958]
[1733919001376,0.72449764,98461.0,98460.0,0.00033958]
[1733919001596,0.61359237,98461.0,98460.0,0.00033958]
[1733919001812,0.2407101,98461.0,98460.0,0.00033958]
[1733919002247,0.332102,98461.0,98460.0,0.00033958]
[1733919002461,0.2407101,98461.0,98460.0,0.00033958]
[1733919002673,0.02879916,98461.0,98460.0,0.00033958]
[1733919002941,0.01661506,98461.0,98460.0,0.00033958]
[1733919003160,0.01661506,98461.0,98460.0,0.0553636]
[1733919004041,0.01061506,98461.0,98460.0,0.0553636]
[1733919004283,0.01661506,98461.0,98460.0,0.0553636]
[1733919004497,0.006,98461.0,98460.0,0.0553636]
[1733919004717,0.203109,98469.0,98460.0,0.0553636]
[1733919004928,0.005,98461.0,98460.0,0.0553636]
[1733919005350,0.002,98461.0,98460.0,0.0553636]
[1733919005772,0.003,98461.0,98460.0,0.0553636]
[1733919008206,0.003,98461.0,98460.0,0.1330636]
[1733919009334,0.003,98461.0,98460.0,0.13407917]
[1733919009458,0.003,98461.0,98460.0,0.23940441]
[1733919009660,0.003,98461.0,98460.0,0.23838884]
[1733919009893,0.003,98461.0,98460.0,0.77488794]
[1733919010104,8.59e-05,98470.0,98469.0,0.203109]
[1733919010335,8.59e-05,98470.0,98469.0,1.34836754]
[1733919010567,8.59e-05,98470.0,98469.0,1.45369278]
[1733919011249,0.0010859,98470.0,98469.0,1.45369278]
[1733919015567,0.0010859,98470.0,98469.0,1.46363774]
[1733919015982,0.0010859,98470.0,98469.0,2.00013684]
[1733919017457,8.59e-05,98470.0,98469.0,2.00013684]
[1733919017827,8.59e-05,98470.0,98469.0,2.00413684]
[1733919018451,0.0010859,98470.0,98469.0,2.00813684]
[1733919025349,0.0010859,98470.0,98469.0,2.30413684]
[1733919025697,8.59e-05,98470.0,98469.0,2.30013684]
[1733919025921,0.0010859,98470.0,98469.0,2.30413684]
[1733919027241,0.0010859,98470.0,98469.0,2.30813684]
[1733919028343,0.0010859,98470.0,98469.0,2.45813684]
[1733919029859,0.0010859,98470.0,98469.0,2.45413684]
[1733919030262,0.0020859,98470.0,98469.0,2.46113684]
[1733919030438,0.0010859,98470.0,98469.0,2.45713684]
[1733919030862,0.0020859,98470.0,98469.0,2.16613684]
[1733919031073,0.0020859,98470.0,98469.0,2.31613684]
[1733919034641,0.0020859,98470.0,98469.0,1.72408288]
[1733919034840,0.0020859,98470.0,98469.0,0.65782434]
[1733919035463,0.0010859,98470.0,98469.0,0.009]
[1733919035887,0.0788859,98470.0,98469.0,0.009]
[1733919036094,0.0788859,98470.0,98467.0,0.5364991]
[1733919036095,0.0778859,98470.0,98467.0,0.5364991]
[1733919036817,0.0778859,98470.0,98469.0,0.004]
[1733919037424,0.0788859,98470.0,98469.0,0.007]
[1733919038032,0.0778859,98470.0,98467.0,0.5374991]
[1733919038241,0.0778859,98470.0,98469.0,0.001]
[1733919038684,0.0778859,98470.0,98469.0,0.002]
[1733919040113,0.0778859,98470.0,98469.0,0.001]
[1733919041384,0.0778859,98470.0,98469.0,0.002]
[1733919042421,0.0778859,98470.0,98460.0,1.02682214]
[1733919042422,0.203126,98461.0,98460.0,0.0075636]
[1733919042629,0.62240377,98461.0,98460.0,0.0075636]
[1733919042877,0.61480579,98461.0,98460.0,0.0075636]
[1733919043102,0.62240238,98461.0,98460.0,0.0075636]
[1733919043310,0.77240238,98461.0,98460.0,0.0075636]
[1733919043957,0.77238046,98461.0,98460.0,0.0075636]
[1733919044359,0.77238046,98461.0,98460.0,0.0095636]
[1733919044505,0.78138046,98461.0,98460.0,0.0105636]
[1733919044706,0.78138046,98461.0,98460.0,0.0095636]
[1733919044707,0.77238046,98461.0,98460.0,0.0095636]
[1733919044920,0.77238046,98461.0,98460.0,0.0075636]
[1733919045135,0.78838046,98461.0,98460.0,0.0095636]
[1733919045814,0.86336244,98461.0,98460.0,0.0075636]
[1733919046154,0.96846573,98461.0,98460.0,6e-07]
[1733919046364,0.96846573,98461.0,98440.0,0.0001718]
[1733919046365,0.023,98449.0,98440.0,0.0001718]
[1733919046524,0.203167,98441.0,98440.0,0.00022746]
[1733919046729,0.30849224,98441.0,98440.0,0.00022746]
[1733919048135,0.31349224,98441.0,98440.0,0.00022746]
[1733919048338,0.31549224,98441.0,98440.0,0.00022746]
[1733919048550,0.210167,98441.0,98440.0,0.00022746]
[1733919050425,0.203167,98441.0,98440.0,0.00022746]
[1733919050637,0.205167,98441.0,98440.0,0.00022746]
[1733919050844,0.206167,98441.0,98440.0,0.00022746]
[1733919051080,0.204167,98441.0,98440.0,0.00022746]
[1733919051272,0.208167,98441.0,98440.0,0.00022746]
[1733919051634,0.259067,98441.0,98440.0,0.00022746]
[1733919052046,0.205167,98441.0,98440.0,0.00022746]
[1733919052256,0.203167,98441.0,98440.0,0.00022746]
[1733919053638,0.208167,98441.0,98440.0,0.00022746]
[1733919053867,0.212167,98441.0,98440.0,0.00022746]
[1733919054252,0.208167,98441.0,98440.0,0.00022746]
[1733919054453,0.203167,98441.0,98440.0,0.00022746]
[1733919054775,0.212167,98441.0,98440.0,0.00122746]
[1733919063540,0.203167,98441.0,98440.0,0.00022746]
[1733919063779,0.209167,98441.0,98440.0,0.00122746]
[1733919064413,0.21974221,98441.0,98440.0,0.00122746]
[1733919070570,0.23186255,98441.0,98440.0,0.00122746]
[1733919072393,0.2369449,98441.0,98440.0,0.00122746]
[1733919072596,0.25595492,98441.0,98440.0,0.00122746]
[1733919072819,0.212167,98441.0,98440.0,0.00122746]
[1733919072997,0.25602977,98441.0,98440.0,0.00122746]
[1733919074376,0.212167,98441.0,98440.0,0.00122746]
[1733919074489,0.23702327,98441.0,98440.0,0.00122746]
[1733919075128,0.25603665,98441.0,98440.0,0.00122746]
[1733919076336,0.25604965,98441.0,98440.0,0.00122746]
[1733919077354,0.23118675,98441.0,98440.0,0.00122746]
[1733919077636,0.25605036,98441.0,98440.0,0.00122746]
[1733919078048,0.25605036,98441.0,98440.0,0.00097146]
[1733919079967,0.25551034,98441.0,98440.0,0.00097146]
[1733919082984,0.25550145,98441.0,98440.0,0.00097146]
[1733919084019,0.25550145,98441.0,98440.0,0.00114326]
[1733919086194,0.212167,98441.0,98440.0,0.00114326]
[1733919086336,0.25553081,98441.0,98440.0,0.00114326]
[1733919086538,0.23704153,98441.0,98440.0,0.00114326]
[1733919088647,0.57399844,98441.0,98440.0,0.00114326]
[1733919089591,0.57399355,98441.0,98440.0,0.00114326]
[1733919090715,0.75658515,98441.0,98440.0,0.00114326]
[1733919091509,0.56891119,98441.0,98440.0,0.00114326]
[1733919091683,0.57399355,98441.0,98440.0,0.00114326]
[1733919091888,0.56891119,98441.0,98440.0,0.00114326]
[1733919092108,0.57399355,98441.0,98440.0,0.00114326]
[1733919092719,0.57408814,98441.0,98440.0,0.00114326]
[1733919094537,0.57411208,98441.0,98440.0,0.00114326]
[1733919094760,0.82129617,98441.0,98440.0,0.00114326]
[1733919098678,0.92662141,98441.0,98440.0,0.00114326]
[1733919100682,0.70455421,98441.0,98421.0,0.07535576]
[1733919100893,0.203201,98425.0,98421.0,0.07591188]
[1733919101095,0.203201,98425.0,98422.0,0.00874472]
[1733919102292,0.203195,98428.0,98422.0,0.00874472]
[1733919102490,0.00761404,98427.0,98422.0,0.00874472]
[1733919102691,0.203195,98428.0,98422.0,0.00874472]
[1733919102692,0.00761404,98426.0,98422.0,0.00874472]
[1733919102908,0.203195,98428.0,98422.0,0.00874472]
[1733919103211,0.00761331,98427.0,98422.0,0.00874472]
[1733919103462,0.00761331,98426.0,98422.0,0.00874472]
[1733919103836,0.00761331,98425.0,98422.0,0.01074472]
[1733919103960,0.203195,98428.0,98422.0,0.00974472]
[1733919104162,0.00761273,98427.0,98422.0,0.00974472]
[1733919104386,0.00761273,98426.0,98422.0,0.00874472]
[1733919104631,0.00761273,98425.0,98422.0,0.00874472]
[1733919104796,0.203195,98428.0,98422.0,0.00874472]
[1733919104996,0.203198,98426.0,98422.0,0.00874472]
[1733919105197,0.00761156,98425.0,98422.0,0.00874472]
[1733919105399,0.203195,98428.0,98422.0,0.00874472]
[1733919105602,0.00761157,98427.0,98422.0,0.00874472]
[1733919105804,0.203195,98428.0,98422.0,0.00874472]
[1733919105805,0.00761157,98426.0,98422.0,0.00874472]
[1733919106004,0.00761157,98425.0,98422.0,0.00874472]
[1733919106204,0.21081357,98424.0,98422.0,0.00874472]
[1733919106432,0.00761157,98423.0,98422.0,0.00874472]
[1733919107789,0.00761157,98423.0,98422.0,0.00974472]
[1733919107970,0.00761157,98423.0,98422.0,0.01074472]
[1733919109356,0.00761157,98423.0,98422.0,0.01043441]
[1733919109753,0.00761157,98423.0,98422.0,0.00943441]
[1733919109955,0.00761157,98423.0,98422.0,0.00843441]
[1733919109956,0.00860209,98423.0,98422.0,0.00843441]
[1733919110571,0.00860209,98423.0,98422.0,0.00943441]
[1733919110751,0.00860209,98423.0,98422.0,0.00711004]
[1733919111436,0.02076161,98423.0,98422.0,0.00711004]
[1733919111611,0.02076161,98423.0,98422.0,0.00611004]
[1733919111774,0.11199179,98423.0,98422.0,0.00611004]
[1733919112249,0.02076161,98423.0,98422.0,0.00611004]
[1733919113055,0.01976161,98423.0,98422.0,0.00611004]
[1733919113355,0.16356846,98423.0,98422.0,0.00611004]
[1733919113571,0.58406215,98423.0,98422.0,0.00611004]
[1733919113766,0.5891632,98423.0,98422.0,0.00289902]
[1733919113972,0.58507991,98423.0,98422.0,0.00289902]
[1733919114396,0.58407991,98423.0,98422.0,0.00289902]
[1733919114805,0.58907991,98423.0,98422.0,0.00289902]
[1733919114982,0.61946683,98423.0,98422.0,0.00289902]
[1733919115187,0.80473852,98423.0,98422.0,0.00289902]
[1733919115388,0.76926831,98423.0,98422.0,0.00289902]